bitfinex-derivatives/quotes_ETHF0:USTF0_20250430
["timestamp","ask_amount","ask_price","bid_price","bid_amount"]
[1746021155424,13.5308,1750.1,1750.0,2.11227625]
[1746021155625,18.5308,1750.1,1750.0,0.46684625]
[1746021155821,18.5308,1750.1,1750.0,6.25e-06]
[1746021156023,4.35037,1750.0,1749.9,12.90814726]
[1746021156227,1.14296,1749.4,1749.3,7.57453247]
[1746021156427,4.35076,1749.4,1749.3,7.57453247]
[1746021156623,3.2078,1749.4,1749.3,7.57453247]
[1746021156822,3.3231,1749.6,1749.3,7.57453247]
[1746021157029,4.46596,1749.6,1749.3,8.71755247]
[1746021157229,3.2078,1749.7,1749.5,1.14289]
[1746021157429,3.2078,1749.7,1749.3,7.57453247]
[1746021157633,4.46599,1749.6,1749.3,8.71752247]
[1746021157832,6.5309,1749.6,1749.3,7.57453247]
[1746021158229,4.35076,1749.4,1749.3,7.57453247]
[1746021158931,3.2078,1749.4,1749.3,7.57453247]
[1746021159131,3.2324,1749.4,1749.3,7.57453247]
[1746021159329,7.58316,1749.4,1749.3,7.57453247]
[1746021159530,7.57403635,1749.4,1749.3,7.57453247]
[1746021159727,1.14295,1749.5,1749.3,7.57453247]
[1746021159932,5.862,1750.0,1749.5,1.14289]
[1746021160130,1.14259,1750.0,1749.7,1.14273]
[1746021160334,5.862,1750.2,1749.6,6.06482]
[1746021160537,5.862,1750.2,1749.8,3.2078]
[1746021160735,3.2078,1750.3,1749.8,3.2078]
[1746021160937,3.2078,1750.5,1750.0,3.2078]
[1746021161139,3.2078,1750.5,1750.2,1.14239]
[1746021161343,1.14231,1750.4,1750.1,5.99045]
[1746021161539,3.2078,1750.4,1750.1,1.14245]
[1746021161741,3.2078,1750.6,1750.0,3.2078]
[1746021162139,1.14239,1750.3,1750.1,1.14248]
[1746021162340,6.0636,1750.4,1749.7,1.14273]
[1746021162637,6.06373,1750.3,1749.8,1.1427]
[1746021162943,3.0606,1750.2,1749.8,3.2078]
[1746021163140,3.2078,1750.5,1750.0,3.2078]
[1746021163344,3.0606,1750.4,1750.1,1.14248]
[1746021163539,3.0606,1750.4,1749.8,3.2078]
[1746021163844,1.14258,1750.0,1749.8,3.2078]
[1746021164041,1.14252,1750.1,1749.8,3.2078]
[1746021164234,3.0606,1750.4,1750.0,3.2078]
[1746021164449,1.1425,1750.1,1750.0,3.2078]
[1746021164940,1.14269,1749.9,1749.8,3.2078]
[1746021165144,1.14287,1749.6,1749.3,4.848]
[1746021165340,3.0255,1749.8,1749.6,1.14277]
[1746021165642,1.14275,1749.8,1749.7,3.0385]
[1746021165843,1.14275,1749.8,1749.7,6.2463]
[1746021166042,9.89206,1750.1,1749.7,11.2463]
[1746021166242,11.74359,1750.3,1749.7,11.0953]
[1746021166441,1.14257,1750.0,1749.9,3.2078]
[1746021166838,1.14263,1749.9,1749.8,1.14268]
[1746021167245,2.85611,1750.2,1749.8,1.14268]
[1746021167446,1.14263,1749.9,1749.8,1.14268]
[1746021167645,1.1427,1749.8,1749.7,9.19953]
[1746021167843,1.14263,1750.0,1749.8,1.14268]
[1746021168047,1.14257,1750.0,1749.9,3.2078]
[1746021168843,9.08941,1750.2,1749.7,8.0568]
[1746021169147,8.718,1750.3,1749.9,3.2078]
[1746021169451,1.14257,1750.0,1749.9,3.2078]
[1746021169637,1.14257,1750.0,1749.9,4.35043]
[1746021170141,1.14257,1750.0,1749.9,3.2078]
[1746021170346,1.14257,1750.0,1749.9,4.35043]
[1746021170542,1.14253,1750.1,1750.0,1.14252]
[1746021170938,6.06353,1750.5,1750.0,5.0]
[1746021171148,1.1425,1750.2,1750.1,1.14248]
[1746021171547,1.14257,1750.0,1749.9,4.3974]
[1746021171748,1.14256,1750.1,1750.0,1.14254]
[1746021172646,1.14256,1750.1,1749.9,6.4626]
[1746021172647,6.06342,1750.5,1750.2,1.14244]
[1746021172847,1.14247,1750.2,1750.1,9.19925]
[1746021173046,1.14242,1750.3,1750.2,1.1424]
[1746021173646,4.14248,1750.5,1750.4,1.14231]
[1746021173848,1.14228,1750.5,1750.4,1.14231]
[1746021174147,10.55839,1751.1,1750.4,1.14231]
[1746021174148,3.2078,1751.1,1750.4,10.71138]
[1746021174339,2.995,1751.2,1750.5,13.88239]
[1746021174544,1.14211,1750.7,1750.6,5.99116]
[1746021174747,1.14211,1750.7,1750.6,46.79116]
[1746021174951,1.14211,1750.7,1750.6,4.849]
[1746021175350,1.14211,1750.7,1750.6,45.649]
[1746021175546,2.85495,1751.0,1750.6,12.70442]
[1746021175547,1.14198,1751.0,1750.6,12.70442]
[1746021175850,2.995,1751.2,1750.8,3.2078]
[1746021176046,1.14191,1751.1,1751.0,1.1419]
[1746021176247,1.14198,1750.9,1750.8,40.8]
[1746021176549,1.14217,1750.6,1750.5,6.1778]
[1746021176854,1.14217,1750.6,1750.5,46.9778]
[1746021177150,1.14217,1750.6,1750.5,3.065]
[1746021177358,1.14217,1750.6,1750.5,4.20724]
[1746021177754,4.34654,1750.7,1750.6,1.14217]
[1746021177942,1.1421,1750.8,1750.7,1.14209]
[1746021178148,1.14208,1750.8,1750.7,1.14207]
[1746021178448,1.14204,1750.9,1750.8,1.14202]
[1746021178647,2.85485,1751.0,1750.5,3.065]
[1746021178853,1.14237,1750.3,1750.2,3.2078]
[1746021179156,1.1423,1750.5,1750.4,1.14227]
[1746021179355,1.14223,1750.6,1750.5,1.14221]
[1746021179551,1.14221,1750.6,1750.5,1.14222]
[1746021179755,2.85496,1750.9,1750.6,1.14216]
[1746021179956,2.85479,1751.0,1750.7,1.14207]
[1746021180155,2.85479,1751.0,1750.5,3.0703]
[1746021180358,1.14213,1750.7,1750.6,1.14215]
[1746021180654,1.14217,1750.6,1750.5,3.0703]
[1746021180859,1.14231,1750.4,1750.3,4.35013]
[1746021181055,1.14237,1750.3,1750.2,4.21273]
[1746021181255,1.14235,1750.4,1750.3,1.14233]
[1746021181552,1.14237,1750.3,1750.2,3.0703]
[1746021181957,2.8561,1750.2,1749.7,3.2078]
[1746021182252,1.14267,1749.9,1749.8,1.14265]
[1746021182561,1.14264,1750.0,1749.9,1.14261]
[1746021182747,1.14266,1749.9,1749.8,4.35044]
[1746021182953,1.14266,1749.9,1749.8,3.2078]
[1746021183263,1.14285,1749.6,1749.5,1.14285]
[1746021183452,6.14585,1749.8,1749.4,4.35071]
[1746021183753,1.14289,1749.5,1749.4,4.35071]
[1746021184156,1.14296,1749.4,1749.3,4.3707]
[1746021184354,1.14302,1749.3,1749.2,2.9928]
[1746021184756,1.14309,1749.2,1749.1,1.14312]
[1746021184952,6.14618,1749.6,1749.0,3.2078]
[1746021184953,3.2891,1749.4,1749.0,3.2078]
[1746021185263,6.16325,1749.8,1748.8,10.91805]
[1746021185264,3.3065,1749.8,1749.2,6.06551]
[1746021185464,3.3065,1749.8,1749.5,1.14286]
[1746021185761,1.14288,1749.6,1749.3,3.1991]
[1746021186060,6.5956,1749.8,1749.3,3.1991]
[1746021186061,9.45236,1749.8,1749.3,6.5191]
[1746021186263,1.14296,1749.4,1749.3,6.5191]
[1746021186562,1.14296,1749.4,1749.3,1.14299]
[1746021186761,3.1884,1749.5,1749.3,1.14302]
[1746021186970,6.06472,1749.7,1749.5,1.14286]
[1746021186971,1.14284,1749.6,1749.5,1.14286]
[1746021187150,3.1884,1749.7,1749.5,1.14286]
[1746021187350,3.1884,1750.0,1749.6,3.1092]
[1746021187556,1.14276,1749.7,1749.6,3.1092]
[1746021187855,6.04482,1750.0,1749.6,3.1092]
[1746021188060,1.14271,1749.8,1749.7,1.14273]
[1746021188262,1.14276,1749.7,1749.6,6.317]
[1746021188461,1.14294,1749.5,1749.4,3.2078]
[1746021188657,3.1884,1749.7,1749.4,3.2078]
[1746021188863,2.85708,1749.6,1749.2,3.1092]
[1746021189058,1.14302,1749.3,1749.2,3.1092]
[1746021189259,1.14315,1749.1,1749.0,3.2078]
[1746021189461,3.0338,1749.2,1749.1,1.14315]
[1746021189656,1.14306,1749.3,1749.2,1.14306]
[1746021189859,1.14313,1749.2,1749.1,1.14313]
[1746021190363,1.14315,1749.1,1749.0,4.35102]
[1746021190558,4.17695,1749.1,1749.0,4.35102]
[1746021190954,4.17695,1749.1,1749.0,3.2078]
[1746021191153,4.17695,1749.1,1748.9,4.18373]
[1746021191154,5.89174,1749.1,1748.8,3.2078]
[1746021191356,6.06615,1748.9,1748.4,3.2078]
[1746021191560,5.8922,1748.8,1748.3,4.833]
[1746021191759,1.14351,1748.6,1748.5,1.14352]
[1746021191957,3.0338,1748.8,1748.3,4.833]
[1746021191958,2.85855,1748.7,1748.3,4.833]
[1746021192153,1.14361,1748.4,1748.2,6.2843]
[1746021192360,1.14361,1748.4,1748.3,1.14366]
[1746021192361,1.14364,1748.4,1748.3,1.14366]
[1746021192577,3.2078,1748.4,1747.8,3.7078]
[1746021192868,1.1442,1747.5,1747.4,15.03728575]
[1746021193059,4.352,1747.5,1747.4,13.73416575]
[1746021193254,4.352,1747.5,1747.4,9.36292575]
[1746021193458,1.14433,1747.3,1747.2,18.00847813]
[1746021193660,3.2078,1747.3,1747.2,18.00847813]
[1746021193960,4.35213,1747.3,1747.2,18.00847813]
[1746021194163,7.50113,1747.3,1747.2,11.58141813]
[1746021194359,12.50113,1747.3,1747.2,11.58141813]
[1746021194959,6.3568,1747.3,1747.2,11.58141813]
[1746021195155,11.3568,1747.3,1747.2,11.58141813]
[1746021195367,12.50113,1747.3,1747.2,11.58141813]
[1746021195567,6.3568,1747.3,1747.2,11.58141813]
[1746021195769,6.3568,1747.3,1746.7,25.24131038]
[1746021195770,3.2078,1747.3,1747.0,4.836]
[1746021196070,3.2078,1747.3,1747.2,1.1444]
[1746021196369,3.2078,1747.7,1747.6,1.14408]
[1746021196567,3.2078,1748.1,1747.6,4.836]
[1746021196763,1.14371,1748.3,1748.2,1.14374]
[1746021196764,3.2078,1748.3,1748.2,1.14374]
[1746021196969,3.2078,1748.3,1748.2,5.97974]
[1746021197359,3.2078,1748.6,1748.2,54.98754]
[1746021197661,7.36455,1749.0,1748.8,1.14333]
[1746021197857,3.2078,1749.4,1749.3,1.14302]
[1746021198063,5.51151158,1749.6,1749.5,1.14289]
[1746021198264,5.51151158,1749.6,1749.5,4.35069]
[1746021198765,4.64399369,1749.8,1749.7,1.14276]
[1746021198967,3.48090369,1749.8,1749.7,9.18656]
[1746021199274,0.33505263,1750.1,1750.0,1.14257]
[1746021199458,0.33505263,1750.1,1750.0,4.35037]
[1746021199663,0.33505263,1750.1,1750.0,9.35037]
[1746021199867,0.33505263,1750.1,1750.0,4.35037]
[1746021200169,3.66887967,1750.3,1750.1,1.1425]
[1746021200363,3.66887967,1750.3,1750.0,8.0438]
[1746021200571,6.87667967,1750.3,1750.0,4.836]
[1746021200767,3.2078,1750.1,1749.7,4.836]
[1746021200967,4.4676,1750.0,1749.7,5.97876]
[1746021201171,1.14267,1749.9,1749.7,4.836]
[1746021201467,6.5328,1749.8,1749.2,73.7968]
[1746021201664,3.2078,1750.2,1749.3,4.835]
[1746021201865,1.14267,1749.9,1749.4,3.2078]
[1746021202171,3.0228,1749.8,1749.5,1.14287]
[1746021202371,3.0228,1749.8,1749.7,1.14276]
[1746021202569,4.35026,1750.2,1749.9,1.14263]
[1746021202778,1.1425,1750.1,1749.8,4.35047]
[1746021203067,3.0228,1750.1,1749.9,1.1426]
[1746021203373,4.35013,1750.4,1750.1,1.14248]
[1746021203672,4.35013,1750.4,1749.8,3.2078]
[1746021203673,1.14251,1750.1,1749.8,1.14265]
[1746021203875,1.1426,1750.0,1749.7,5.97773]
[1746021204068,4.1654,1750.0,1749.7,5.97773]
[1746021204266,6.2306,1750.0,1749.7,4.835]
[1746021204466,3.0228,1750.0,1749.7,4.835]
[1746021204662,1.1427,1749.8,1749.7,4.835]
[1746021204868,1.14289,1749.5,1749.4,4.834]
[1746021205070,3.2078,1749.6,1748.2,70.561]
[1746021205366,3.0835,1749.7,1749.0,6.06586]
[1746021205671,3.2078,1750.0,1749.2,3.2078]
[1746021205873,3.0835,1749.9,1749.5,1.14286]
[1746021206070,1.14273,1749.8,1749.6,1.1428]
[1746021206261,3.2078,1750.0,1749.5,4.834]
[1746021206465,1.14264,1749.9,1749.7,1.14274]
[1746021206666,1.14264,1749.9,1749.8,3.2038]
[1746021206974,3.2078,1750.0,1749.1,73.7688]
[1746021206975,1.14285,1749.6,1749.4,1.14295]
[1746021207174,4.35065,1749.6,1749.5,4.834]
[1746021207375,3.0835,1749.8,1749.5,4.834]
[1746021207673,3.2078,1750.1,1749.6,3.158]
[1746021207876,6.5221,1750.1,1749.6,5.77400362]
[1746021208071,1.1426,1750.0,1749.8,1.14267]
[1746021208271,1.1426,1750.0,1749.9,4.834]
[1746021208471,4.4569,1750.0,1749.9,4.834]
[1746021208676,3.2078,1750.1,1749.9,4.834]
[1746021208865,1.14251,1750.1,1749.9,8.0418]
[1746021209069,1.14227,1750.5,1750.0,2.85642]
[1746021209275,1.14231,1750.4,1750.2,1.14241]
[1746021209482,11.00378,1750.6,1749.8,3.2078]
[1746021209675,11.00378,1750.6,1749.8,1.1427]
[1746021209676,1.14263,1749.9,1749.8,1.1427]
[1746021209875,3.2078,1750.1,1749.8,1.1427]
[1746021209876,1.14262,1750.0,1749.8,1.1427]
[1746021210077,3.3143,1750.0,1749.7,3.2078]
[1746021210273,1.14269,1749.9,1749.7,4.35055]
[1746021210577,1.14269,1749.9,1749.4,7.9421]
[1746021210578,1.14271,1749.8,1749.6,4.35057]
[1746021210770,1.1427,1749.8,1749.7,1.14275]
[1746021211077,3.3143,1750.0,1749.4,10.79947]
[1746021211273,1.14254,1750.1,1749.7,2.85691]
[1746021211571,3.2078,1750.2,1750.0,1.14251]
[1746021211572,1.14247,1750.2,1750.0,1.14251]
[1746021211871,3.2078,1750.1,1749.8,7.9275]
[1746021212065,1.14278,1749.7,1749.5,4.825]
[1746021212266,1.14278,1749.7,1749.6,3.1025]
[1746021212474,1.14309,1749.2,1749.1,5.96814]
[1746021212770,3.1002,1749.6,1749.1,4.825]
[1746021212972,3.1002,1749.6,1749.4,1.14293]
[1746021213168,1.14298,1749.4,1749.2,3.1025]
[1746021213476,1.14299,1749.4,1749.3,1.14302]
[1746021213671,1.14299,1749.4,1749.1,8.0328]
[1746021213672,3.2078,1749.4,1748.9,3.2078]
[1746021213973,3.2078,1749.0,1748.1,2.85953]
[1746021214172,1.14344,1748.7,1748.5,3.0074]
[1746021214380,1.14348,1748.6,1748.5,3.0074]
[1746021214584,4.35128,1748.6,1748.5,3.0074]
[1746021214880,14.0698,1748.6,1747.8,8.0923]
[1746021215174,3.2078,1748.6,1747.9,3.0074]
[1746021215384,3.2078,1748.6,1748.3,1.14366]
[1746021215574,5.862,1748.7,1748.3,4.825]
[1746021215773,4.35118,1748.8,1748.6,1.14348]
[1746021215969,4.35118,1748.8,1748.7,3.0074]
[1746021216182,1.1435,1748.6,1748.4,1.14359]
[1746021216475,1.1435,1748.6,1748.5,3.0074]
[1746021217186,1.14361,1748.4,1748.3,4.825]
[1746021217882,1.14372,1748.3,1748.1,4.39411]
[1746021218081,3.1,1748.5,1748.1,4.39411]
[1746021218284,1.14373,1748.3,1748.2,3.2503]
[1746021219082,1.14368,1748.3,1748.2,3.2503]
[1746021219681,1.14398,1747.9,1747.7,8.0348]
[1746021219880,3.2078,1747.8,1747.3,4.827]
[1746021220073,1.14419,1747.6,1747.4,1.14425]
[1746021220273,3.2078,1747.7,1746.9,7.68847]
[1746021220482,9.1215,1747.7,1747.3,4.22952]
[1746021220681,1.14426,1747.5,1747.4,3.0852]
[1746021220888,1.14426,1747.5,1746.9,7.68847]
[1746021220889,1.14446,1747.1,1747.0,3.0852]
[1746021221184,3.2078,1747.3,1747.0,3.0852]
[1746021221380,1.14446,1747.1,1747.0,3.0852]
[1746021221581,1.14438,1747.3,1747.1,1.14446]
[1746021221782,1.14429,1747.4,1747.2,4.22955]
[1746021221976,6.06864,1747.3,1746.7,3.2078]
[1746021222178,3.2078,1746.9,1746.4,10.89807]
[1746021222377,8.9155,1747.2,1746.6,3.0852]
[1746021222574,8.9155,1747.2,1746.9,1.14455]
[1746021222779,1.1445,1747.1,1746.9,1.14455]
[1746021223084,3.2078,1747.5,1746.9,3.1664]
[1746021223283,4.31769,1747.3,1747.1,1.14445]
[1746021223480,3.2078,1747.5,1746.9,3.1664]
[1746021223685,1.14428,1747.4,1747.2,1.14438]
[1746021223878,1.14442,1747.2,1747.0,1.14448]
[1746021224082,6.3811,1747.3,1747.1,1.14445]
[1746021224277,3.1733,1747.3,1747.0,4.828]
[1746021224587,1.14444,1747.2,1747.0,4.828]
[1746021224782,3.1733,1747.3,1747.0,4.828]
[1746021224980,5.862,1747.6,1747.4,1.14427]
[1746021225180,3.2078,1747.9,1747.4,4.828]
[1746021225378,4.31734,1747.8,1747.5,3.1664]
[1746021225586,3.1733,1747.8,1747.7,1.14407]
[1746021225884,3.1733,1747.8,1747.5,3.1664]
[1746021225885,3.2078,1748.1,1748.0,1.14387]
[1746021226083,3.2078,1748.5,1748.0,1.14387]
[1746021226384,3.2078,1748.2,1747.6,11.2377]
[1746021226589,4.35035,1748.4,1747.9,6.1805]
[1746021226777,3.2078,1748.1,1747.9,3.3207]
[1746021226983,3.2078,1748.1,1747.9,4.4646]
[1746021226984,1.14386,1748.1,1747.9,4.4646]
[1746021227286,6.4145,1748.4,1747.9,3.3207]
[1746021227490,1.14372,1748.3,1748.1,1.14375]
[1746021227788,4.35042,1748.3,1748.1,5.97375]
[1746021227988,1.14374,1748.2,1748.1,4.83]
[1746021228190,4.35044,1748.2,1748.1,5.97381]
[1746021228485,4.35044,1748.2,1748.1,4.83]
[1746021228784,3.2078,1748.4,1748.1,1.14376]
[1746021228986,1.14374,1748.3,1748.2,1.14374]
[1746021229282,6.3115,1748.4,1748.0,1.14386]
[1746021229590,1.14381,1748.1,1748.0,3.1835]
[1746021229987,1.14378,1748.2,1748.0,4.32734]
[1746021230182,1.14381,1748.1,1748.0,3.1835]
[1746021230379,8.72125,1748.3,1747.6,3.2078]
[1746021230586,6.06765,1748.0,1747.6,3.2078]
[1746021230788,1.1442,1747.5,1747.4,9.15775]
[1746021230983,1.14419,1747.6,1747.4,9.15775]
[1746021231184,1.1442,1747.5,1747.4,4.83]
[1746021231384,1.14433,1747.3,1747.2,7.53568]
[1746021231585,1.14432,1747.4,1747.2,48.33568]
[1746021231785,1.14433,1747.3,1747.2,48.33568]
[1746021232092,3.2078,1747.6,1747.2,3.1835]
[1746021232393,1.14433,1747.3,1747.2,1.1444]
[1746021232890,5.93892,1747.5,1747.1,45.629]
[1746021233089,1.1444,1747.2,1747.1,46.77345]
[1746021233486,1.14438,1747.3,1747.2,1.14439]
[1746021233787,1.1444,1747.2,1747.1,45.629]
[1746021233988,1.1444,1747.2,1746.6,10.9902]
[1746021233989,2.86116,1747.1,1746.6,10.9902]
[1746021234186,1.14492,1746.4,1746.3,6.3224]
[1746021234393,3.2078,1746.4,1745.5,3.2078]
[1746021234581,1.14536,1745.8,1745.5,1.14547]
[1746021234784,3.2078,1746.0,1745.6,7.9446]
[1746021234785,1.14538,1745.7,1745.6,7.9446]
[1746021234985,1.14558,1745.4,1745.3,11.2902052]
[1746021235187,6.10811,1745.7,1745.3,12.4358052]
[1746021235188,4.35321,1745.7,1745.3,12.4358052]
[1746021235388,1.14547,1745.6,1745.4,4.83]
[1746021235588,1.14554,1745.5,1745.3,11.2902052]
[1746021235791,3.2078,1745.9,1745.3,11.2902052]
[1746021235992,1.14552,1745.5,1745.3,11.2902052]
[1746021236191,4.35338,1745.4,1745.3,11.2902052]
[1746021236488,4.35314,1745.8,1745.5,1.14551]
[1746021236690,3.2078,1746.2,1745.7,3.2078]
[1746021236891,3.2078,1746.6,1746.3,1.14499]
[1746021237084,1.14475,1746.7,1746.3,5.97495]
[1746021237399,3.2078,1747.0,1746.7,1.14468]
[1746021237689,3.2445,1747.3,1747.0,1.14448]
[1746021237893,3.2078,1747.4,1747.1,1.14445]
[1746021238090,3.2078,1747.4,1747.1,3.1593]
[1746021238292,1.14437,1747.3,1747.1,3.1593]
[1746021238491,1.14446,1747.1,1747.0,4.832]
[1746021238695,3.2078,1747.4,1747.0,4.832]
[1746021238887,10.1970678,1747.9,1747.1,3.1593]
[1746021238888,3.2078,1747.8,1747.1,3.1593]
[1746021239088,7.3371978,1747.9,1747.1,6.169]
[1746021239395,7.3371978,1747.9,1747.8,1.144]
[1746021239608,7.3371978,1747.9,1747.8,5.976]
[1746021240105,4.9910478,1747.9,1747.8,10.976]
[1746021240309,9.15679331,1748.1,1748.0,1.14387]
[1746021241103,9.15679331,1748.1,1748.0,4.35167]
[1746021241602,9.15679331,1748.1,1748.0,1.14387]
[1746021241803,3.2078,1748.7,1748.1,2.85953]
[1746021242003,3.2078,1749.1,1748.9,1.14324]
[1746021242198,3.0239,1749.0,1748.8,4.968]
[1746021242406,3.0239,1749.0,1748.9,1.14329]
[1746021242805,3.2078,1749.2,1748.8,4.968]
[1746021243004,6.2317,1749.2,1749.0,1.14317]
[1746021243210,3.0239,1749.2,1749.0,1.14316]
[1746021243411,1.14303,1749.3,1749.0,1.14319]
[1746021243711,3.0239,1749.3,1748.9,3.145]
[1746021244007,4.35066,1749.6,1749.1,3.2078]
[1746021244211,3.2078,1749.4,1749.2,8.1134]
[1746021244412,1.143,1749.4,1749.2,8.1134]
[1746021244605,1.14302,1749.3,1749.2,4.967]
[1746021244806,3.2458,1749.3,1749.2,4.967]
[1746021245004,3.2458,1749.3,1749.2,6.11009]
[1746021245200,3.2078,1749.6,1749.2,8.1748]
[1746021245411,1.14279,1749.7,1749.2,8.1748]
[1746021245412,3.2458,1749.7,1749.3,3.1464]
[1746021245601,2.85708,1749.6,1749.2,4.967]
[1746021245806,6.4536,1749.5,1749.2,4.967]
[1746021246005,1.14299,1749.4,1749.2,1.14309]
[1746021246203,1.143,1749.4,1749.1,4.967]
[1746021246511,1.14305,1749.3,1749.1,6.11012]
[1746021246709,3.2458,1749.3,1749.2,1.14309]
[1746021246907,3.2078,1749.6,1749.2,4.45129]
[1746021247205,4.30145,1749.5,1749.2,3.3082]
[1746021247413,1.14298,1749.4,1749.2,4.45127]
[1746021247710,1.14298,1749.4,1749.2,7.65907]
[1746021248009,4.30144,1749.5,1749.3,1.14302]
[1746021248210,3.1585,1749.5,1749.4,1.14296]
[1746021248405,1.14278,1749.7,1749.3,9.966]
[1746021248609,1.1427,1749.8,1749.6,1.14283]
[1746021248806,1.14278,1749.7,1749.5,1.14285]
[1746021249007,1.14278,1749.7,1749.6,4.965]
[1746021249208,1.14278,1749.7,1749.5,1.14285]
[1746021249209,3.1585,1749.6,1749.3,4.965]
[1746021249513,4.30136,1749.6,1749.2,3.3082]
[1746021249812,3.2078,1749.9,1749.3,4.965]
[1746021250021,3.2078,1750.1,1749.8,1.14266]
[1746021250206,3.2141,1750.0,1749.9,1.14263]
[1746021250516,2.85573,1750.5,1750.0,1.14251]
[1746021250517,1.14248,1750.2,1750.0,1.14251]
[1746021250715,1.1426,1750.0,1749.8,3.2933]
[1746021250904,1.14255,1750.1,1749.9,4.965]
[1746021251110,3.2078,1750.0,1749.9,4.965]
[1746021251311,1.14257,1750.0,1749.9,4.965]
[1746021251706,4.35037,1750.0,1749.9,4.965]
[1746021252117,1.14283,1749.6,1749.5,3.2933]
[1746021252318,1.14283,1749.6,1749.4,4.963]
[1746021252319,1.14289,1749.5,1749.4,4.963]
[1746021252514,1.14309,1749.2,1749.1,8.2563]
[1746021252912,1.14309,1749.2,1749.1,4.963]
[1746021253221,1.14322,1749.0,1748.9,4.963]
[1746021253411,1.14342,1748.7,1748.6,4.963]
[1746021253616,1.14368,1748.3,1748.2,1.14372]
[1746021253814,1.14368,1748.3,1748.2,7.9987]
[1746021254114,1.14368,1748.3,1748.2,4.963]
[1746021254608,1.14366,1748.4,1748.2,6.10671]
[1746021254811,4.4666,1748.6,1748.4,1.14356]
[1746021255011,4.46658,1748.6,1748.5,3.0357]
[1746021255316,3.3231,1748.6,1748.2,8.2277]
[1746021255513,3.2078,1749.2,1748.9,1.14326]
[1746021255820,3.2078,1749.4,1749.2,1.14309]
[1746021256006,2.85719,1749.6,1749.0,3.1055]
[1746021256211,1.14309,1749.2,1749.1,1.14313]
[1746021256412,4.22867,1749.3,1749.1,1.14313]
[1746021256612,3.0856,1749.3,1749.0,6.3133]
[1746021256816,1.14273,1749.8,1749.3,2.85757]
[1746021257012,2.85587,1750.4,1749.6,2.85704]
[1746021257211,1.14252,1750.1,1749.7,3.1055]
[1746021257406,3.0856,1750.3,1749.7,3.1055]
[1746021257407,1.14245,1750.2,1749.8,8.1718]
[1746021257605,1.14245,1750.2,1750.0,1.14252]
[1746021257818,3.0856,1750.3,1749.9,3.1055]
[1746021258216,1.14244,1750.2,1750.0,1.14252]
[1746021258417,1.14253,1750.1,1749.9,6.3133]
[1746021258619,1.14257,1750.0,1749.9,3.1055]
[1746021258920,1.14257,1750.0,1749.9,4.24813]
[1746021259122,1.14233,1750.4,1749.9,8.1055]
[1746021259313,4.25879,1750.5,1750.3,1.14237]
[1746021259616,3.2078,1750.6,1750.3,4.963]
[1746021259809,1.14226,1750.5,1750.3,1.14235]
[1746021260010,3.1165,1750.5,1750.4,6.10531]
[1746021260210,3.2078,1750.6,1750.4,6.10531]
[1746021260421,1.14218,1750.6,1750.5,3.2991]
[1746021260816,1.14224,1750.5,1750.4,4.963]
[1746021261017,3.1165,1750.5,1750.4,6.10531]
[1746021261520,7.46654,1750.5,1750.4,4.963]
[1746021261922,1.14234,1750.4,1750.2,6.10439]
[1746021262225,3.3006,1750.4,1750.3,1.14237]
[1746021262410,3.3006,1750.4,1750.2,4.962]
[1746021262609,1.14217,1750.6,1750.4,1.14227]
[1746021262815,1.14224,1750.5,1750.4,1.14227]
[1746021263110,3.2078,1750.7,1750.4,1.14227]
[1746021263111,3.2078,1750.9,1750.5,1.14224]
[1746021263417,3.3006,1750.9,1750.6,9.31194]
[1746021263623,1.14211,1750.7,1750.6,4.962]
[1746021263808,1.14209,1750.8,1750.6,46.90417]
[1746021264015,1.14196,1751.0,1750.8,1.14199]
[1746021264209,9.36291,1751.2,1750.7,3.2286]
[1746021264415,9.36291,1751.2,1750.7,4.3707]
[1746021264416,1.14204,1750.8,1750.7,4.3707]
[1746021264721,1.14202,1750.9,1750.7,4.37066]
[1746021264919,2.85465,1751.1,1750.7,4.37066]
[1746021265111,1.14211,1750.7,1750.6,45.762]
[1746021265316,1.14231,1750.4,1750.3,8.1688]
[1746021265817,1.14227,1750.5,1750.3,50.11111]
[1746021266015,1.14231,1750.4,1750.3,50.11111]
[1746021266216,1.14231,1750.4,1750.3,48.9688]
[1746021266418,1.14231,1750.4,1750.3,50.11117]
[1746021266622,3.0601,1750.5,1750.4,1.14231]
[1746021266825,6.5303,1751.0,1750.3,51.82473]
[1746021267123,1.14217,1750.6,1750.5,1.14224]
[1746021267425,1.14231,1750.4,1750.3,45.761]
[1746021268522,1.14231,1750.4,1750.3,4.961]
[1746021269121,1.14237,1750.3,1750.2,1.14243]
[1746021269316,3.0601,1750.5,1750.1,3.1657]
[1746021269520,3.0601,1750.5,1750.0,48.61727]
[1746021269822,1.14234,1750.4,1750.3,1.14235]
[1746021270221,1.14244,1750.2,1750.1,8.1267]
[1746021270622,1.14244,1750.2,1750.1,3.1657]
[1746021270817,1.1425,1750.1,1750.0,40.8]
[1746021271017,1.1425,1750.1,1750.0,4.857]
[1746021271617,1.14283,1749.6,1749.5,4.857]
[1746021272317,4.35063,1749.6,1749.5,4.857]
[1746021272515,1.14315,1749.1,1749.0,43.8613]
[1746021272726,1.14315,1749.1,1749.0,45.00451]
[1746021273020,5.862,1749.7,1749.0,53.7183]